bitfinex-derivatives/quotes_ETHF0:USTF0_20240923
["timestamp","ask_amount","ask_price","bid_price","bid_amount"]
[1727098088079,1.33367,2651.6,2651.3,0.37723]
[1727098088275,0.37721,2651.4,2651.3,0.37723]
[1727098088488,1.33367,2651.6,2651.3,0.37722]
[1727098088779,0.37721,2651.4,2651.3,0.37722]
[1727098088981,0.37721,2651.4,2651.1,1.1277]
[1727098089179,0.37721,2651.4,2651.3,0.37723]
[1727098089977,1.33367,2651.6,2651.2,0.94309]
[1727098089978,0.3907,2651.6,2651.2,0.94309]
[1727098090180,3.97455,2651.9,2651.7,0.37716]
[1727098090492,4.34135,2651.9,2651.8,0.3729]
[1727098090687,8.11255,2651.9,2651.8,0.3729]
[1727098091580,8.11255,2651.9,2651.3,3.2078]
[1727098091581,10.17255,2651.9,2651.3,3.2078]
[1727098091783,0.37716,2651.8,2651.4,0.3845]
[1727098092086,0.37716,2651.8,2651.6,0.37718]
[1727098092881,0.37716,2651.8,2651.7,0.37717]
[1727098095183,0.37715,2651.9,2651.5,0.7674]
[1727098095383,0.37714,2652.0,2651.9,0.37714]
[1727098095983,0.37713,2652.0,2651.6,0.37718]
[1727098096287,0.3747,2652.1,2652.0,0.37713]
[1727098096586,0.3824,2652.2,2652.1,0.37711]
[1727098096587,0.75951,2652.2,2652.1,0.37711]
[1727098096787,0.37711,2652.2,2652.1,0.37711]
[1727098097486,0.3747,2652.3,2652.2,0.3771]
[1727098097487,0.75179,2652.3,2652.2,0.3771]
[1727098097888,0.3771,2652.2,2652.1,0.3771]
[1727098098082,0.37712,2652.1,2652.0,0.37711]
[1727098098483,1.31743,2652.3,2651.9,0.7487]
[1727098098484,1.31995,2652.0,2651.9,0.7487]
[1727098098981,1.31995,2652.0,2651.8,0.37715]
[1727098098982,0.37714,2651.9,2651.8,0.37715]
[1727098099194,1.15344,2651.9,2651.8,0.37715]
[1727098100986,0.37715,2651.8,2651.7,1.13526]
[1727098101182,0.37715,2651.8,2651.7,1.13527]
[1727098101885,1.15345,2651.9,2651.8,0.37715]
[1727098102086,1.15345,2651.9,2651.7,1.13526]
[1727098102087,0.37715,2651.8,2651.7,1.13526]
[1727098102301,0.7763,2651.9,2651.7,1.13526]
[1727098102588,1.15345,2651.9,2651.8,0.37715]
[1727098104291,0.7763,2651.9,2651.8,0.37715]
[1727098104494,0.3628,2652.1,2651.9,0.37713]
[1727098104495,0.37713,2652.0,2651.9,0.37713]
[1727098105197,0.74152,2652.1,2652.0,0.37713]
[1727098105490,0.37713,2652.0,2651.9,0.37713]
[1727098105696,0.3644,2652.1,2651.7,0.7581]
[1727098105894,0.37713,2652.0,2651.9,0.37714]
[1727098106793,0.37714,2651.9,2651.8,0.37714]
[1727098107092,0.37714,2652.0,2651.9,0.37714]
[1727098107289,0.37714,2651.9,2651.8,0.37714]
[1727098107995,0.37714,2652.0,2651.9,0.37714]
[1727098109583,0.3644,2652.1,2651.7,0.7581]
[1727098109584,0.37714,2651.9,2651.8,0.37714]
[1727098110093,0.94283,2652.0,2651.7,0.7581]
[1727098110289,0.37721,2651.4,2651.3,3.2078]
[1727098110488,2.06,2651.8,2651.4,0.37721]
[1727098110489,0.37721,2651.5,2651.4,0.37721]
[1727098111392,0.37719,2651.6,2651.3,3.2078]
[1727098111595,0.7403,2651.7,2651.6,0.37718]
[1727098111596,1.11748,2651.7,2651.6,0.37718]
[1727098111906,0.74658,2651.7,2651.6,0.37718]
[1727098112088,0.3772,2651.5,2651.4,0.37721]
[1727098112492,0.3772,2651.5,2651.3,3.2078]
[1727098112493,0.74809,2651.6,2651.5,0.3772]
[1727098113094,0.3772,2651.5,2651.4,0.3772]
[1727098113291,0.37721,2651.4,2651.3,3.58502]
[1727098113497,0.37721,2651.5,2651.4,0.37721]
[1727098113891,1.31388,2651.6,2651.3,3.58502]
[1727098113892,0.37721,2651.4,2651.3,3.58502]
[1727098114505,0.37721,2651.4,2651.3,0.37722]
[1727098115602,0.3694,2651.7,2651.3,3.772]
[1727098115902,0.3694,2651.7,2651.2,0.7568]
[1727098116094,0.37718,2651.6,2651.5,0.37718]
[1727098117898,0.74658,2651.7,2651.6,0.37718]
[1727098118309,3.2078,2651.9,2651.7,0.37715]
[1727098118506,3.58494,2651.9,2651.8,0.75405]
[1727098119608,0.37714,2651.9,2651.8,0.75405]
[1727098122311,0.37714,2651.9,2651.8,0.3769]
[1727098123213,0.37716,2651.8,2651.7,0.37715]
[1727098124311,1.33936,2651.9,2651.6,0.7805]
[1727098124312,1.3201,2651.7,2651.6,0.7805]
[1727098124605,0.37721,2651.5,2651.3,1.75876565]
[1727098124805,0.37721,2651.5,2651.3,0.775]
[1727098125020,0.37721,2651.5,2651.4,0.37721]
[1727098125717,1.15149,2651.6,2651.5,0.3772]
[1727098127717,4.5455,2651.6,2651.3,0.775]
[1727098127908,0.37721,2651.4,2651.3,1.15222]
[1727098128510,0.3772,2651.5,2651.4,0.3772]
[1727098128911,1.15149,2651.6,2651.5,0.3772]
[1727098129327,0.37721,2651.5,2651.4,0.37721]
[1727098129529,0.7743,2651.6,2651.3,1.15222]
[1727098129530,0.37721,2651.4,2651.3,1.15222]
[1727098130725,0.7687,2651.5,2651.4,0.37721]
[1727098131314,0.37721,2651.4,2651.3,1.15222]
[1727098132613,0.3772,2651.5,2651.4,0.37721]
[1727098133212,0.7743,2651.6,2651.5,0.3772]
[1727098133213,1.1515,2651.6,2651.5,0.3772]
[1727098133423,0.37718,2651.7,2651.6,0.37718]
[1727098133819,0.3956,2651.8,2651.7,0.37717]
[1727098134016,0.77275,2651.8,2651.7,0.37717]
[1727098134318,0.37715,2651.8,2651.7,0.37717]
[1727098135016,0.37715,2651.8,2651.4,3.98679565]
[1727098135017,0.37718,2651.7,2651.6,0.37717]
[1727098135217,0.37716,2651.8,2651.7,0.37715]
[1727098135417,0.9429,2651.8,2651.4,0.98376565]
[1727098135620,0.3772,2651.6,2651.5,0.37719]
[1727098139122,0.76868,2651.7,2651.6,0.37718]
[1727098140822,0.37717,2651.8,2651.7,0.37715]
[1727098141027,1.13135,2651.9,2651.8,0.37715]
[1727098141829,7.46876161,2652.2,2652.1,0.37711]
[1727098142134,1.15109,2652.3,2652.2,0.3771]
[1727098142526,0.37711,2652.2,2652.1,0.3771]
[1727098143019,0.37711,2652.2,2652.1,0.7602]
[1727098143434,0.37711,2652.2,2652.1,1.1218]
[1727098148430,1.15109,2652.3,2652.2,0.3771]
[1727098149435,0.3771,2652.2,2652.1,0.7387]
[1727098155833,0.37715,2651.9,2651.8,0.37715]
[1727098156237,1.10335,2651.9,2651.8,0.37715]
[1727098157741,0.37717,2651.8,2651.7,0.37716]
[1727098157943,0.37717,2651.7,2651.6,0.7332]
[1727098158151,0.37717,2651.7,2651.3,0.3586]
[1727098158345,2.06,2651.5,2651.0,0.98376565]
[1727098158643,0.37724,2651.2,2651.0,0.77486]
[1727098158845,0.37724,2651.2,2650.9,0.37728]
[1727098159043,0.37726,2651.1,2650.8,0.37729]
[1727098159445,0.37726,2651.1,2650.7,0.3976]
[1727098159949,0.37726,2651.1,2650.9,0.37728]
[1727098160140,0.37724,2651.2,2650.9,0.37728]
[1727098160345,0.37726,2651.1,2650.8,0.37729]
[1727098160748,0.37726,2651.1,2650.7,0.3976]
[1727098160749,0.37726,2651.1,2650.9,0.37728]
[1727098161642,0.37728,2651.0,2650.7,0.77491]
[1727098162445,0.37728,2651.0,2650.8,0.37729]
[1727098162750,0.37728,2651.0,2650.7,0.7749]
[1727098163049,0.37728,2651.0,2650.8,0.37729]
[1727098163349,0.37728,2650.9,2650.7,0.77491]
[1727098163949,6.2109,2651.3,2650.7,0.77491]
[1727098163950,0.3773,2650.8,2650.7,0.3976]
[1727098164450,2.06,2651.1,2650.7,0.3976]
[1727098164748,0.37729,2650.9,2650.7,0.77491]
[1727098165253,0.3773,2650.8,2650.7,0.3976]
[1727098165748,0.3773,2650.8,2650.7,0.77491]
[1727098166451,1.11438,2650.9,2650.7,0.77491]
[1727098168250,1.11438,2650.9,2650.8,0.3773]
[1727098168953,0.37728,2650.9,2650.7,2.4576]
[1727098169150,0.37728,2650.9,2650.8,0.37729]
[1727098170348,0.37727,2651.0,2650.9,0.37728]
[1727098171342,0.37728,2650.9,2650.8,0.37729]
[1727098172757,0.3773,2650.8,2650.7,0.3976]
[1727098173053,2.09725,2650.8,2650.7,0.3976]
[1727098173651,1.154,2650.8,2650.7,0.77491]
[1727098173953,4.15101,2651.0,2650.9,0.37728]
[1727098173954,0.37727,2651.0,2650.9,0.37728]
[1727098174651,0.37729,2650.9,2650.8,0.37729]
[1727098175249,0.94314,2651.1,2650.7,0.3976]
[1727098175451,0.37729,2650.9,2650.8,0.37729]
[1727098176252,0.3773,2650.8,2650.7,0.7749]
[1727098176959,0.3773,2650.8,2650.7,0.3976]
[1727098179751,0.3773,2650.8,2650.7,0.77491]
[1727098180157,0.37729,2650.9,2650.8,0.3773]
[1727098180567,0.3773,2650.8,2650.7,0.3976]
[1727098181658,0.3773,2650.8,2650.7,0.77491]
[1727098181850,1.32055,2650.8,2650.7,0.3976]
[1727098182357,0.37731,2650.7,2650.6,0.3867]
[1727098182558,0.77211,2650.7,2650.6,0.3867]
[1727098183265,1.71539,2650.7,2650.6,0.3867]
[1727098184263,0.77211,2650.7,2650.6,0.3867]
[1727098184466,0.77211,2650.7,2650.6,0.76402]
[1727098184959,0.77211,2650.7,2650.6,0.3867]
[1727098185562,0.77211,2650.7,2650.6,0.76402]
[1727098186770,0.77211,2650.7,2650.6,0.3867]
[1727098187460,1.71539,2650.7,2650.6,0.3867]
[1727098187760,0.37734,2650.5,2650.4,0.3694]
[1727098188667,0.37734,2650.5,2650.4,0.74675]
[1727098188865,0.37734,2650.5,2650.4,0.3694]
[1727098189370,0.37734,2650.5,2650.2,0.7368]
[1727098189371,0.37737,2650.3,2650.2,1.11418]
[1727098189570,1.32737,2650.3,2650.2,1.11418]
[1727098191066,4.7236,2650.3,2649.8,3.58522]
[1727098191265,1.32741,2650.0,2649.9,0.3892]
[1727098191457,2.27094,2650.0,2649.9,0.3892]
[1727098191659,1.32741,2650.0,2649.9,0.3892]
[1727098192457,1.32741,2650.0,2649.9,0.76662]
[1727098193068,0.37741,2650.0,2649.9,0.76662]
[1727098193669,0.3774,2650.1,2650.0,0.3774]
[1727098193857,0.37739,2650.2,2650.1,0.3774]
[1727098195365,0.37741,2650.1,2650.0,0.3774]
[1727098195669,1.32741,2650.1,2650.0,0.3774]
[1727098195863,0.37741,2650.0,2649.9,0.76661]
[1727098196065,0.77351,2650.0,2649.9,0.76661]
[1727098196270,1.71704,2650.0,2649.9,0.3892]
[1727098196463,1.15741,2650.0,2649.9,0.3892]
[1727098196959,0.37742,2649.9,2649.8,0.73693]
[1727098197964,1.15742,2650.0,2649.9,0.37742]
[1727098198675,3.2078,2650.3,2649.9,0.37742]
[1727098198868,0.37741,2650.0,2649.9,0.37742]
[1727098199062,1.34096,2650.2,2649.8,0.3595]
[1727098199063,0.37741,2650.1,2650.0,0.3774]
[1727098199268,0.37742,2650.0,2649.9,0.37741]
[1727098199671,0.3774,2650.1,2650.0,0.3774]
[1727098199883,0.37742,2650.0,2649.9,0.37741]
[1727098200363,1.32099,2649.9,2649.8,0.3595]
[1727098200565,1.32099,2649.9,2649.1,0.088]
[1727098200566,4.1418,2649.9,2649.1,0.088]
[1727098200774,3.2078,2649.6,2649.3,0.3663]
[1727098200974,0.37746,2649.7,2649.5,0.37747]
[1727098201164,0.3975,2650.1,2649.6,0.94366]
[1727098201471,6.0016,2650.5,2650.2,0.37738]
[1727098201674,0.37739,2650.2,2649.7,0.3663]
[1727098201972,0.76106,2650.4,2650.1,0.37739]
[1727098202173,0.37738,2650.2,2650.0,0.37741]
[1727098202478,0.37738,2650.2,2650.1,0.3663]
[1727098202768,0.37738,2650.2,2649.6,0.3952]
[1727098202769,0.37743,2649.9,2649.7,0.37745]
[1727098202969,0.37744,2649.8,2649.7,0.3859]
[1727098203172,3.2078,2649.9,2649.5,0.3859]
[1727098203361,0.3837,2649.7,2649.5,0.3859]
[1727098203561,0.37747,2649.6,2649.5,0.3859]
[1727098203862,0.3837,2649.7,2649.2,0.3625]
[1727098204067,0.37747,2649.6,2649.3,0.7634]
[1727098204262,0.37747,2649.6,2649.0,0.37754]
[1727098204263,6.21148,2649.6,2649.0,0.37754]
[1727098204568,2.06,2649.3,2649.1,0.37753]
[1727098204769,5.2678,2649.3,2649.0,0.3859]
[1727098205067,0.37757,2648.9,2648.8,0.3859]
[1727098205374,2.43756,2649.0,2648.7,0.47759]
[1727098205564,2.4379,2649.2,2648.8,0.3881]
[1727098205765,0.3779,2649.2,2648.8,0.76567]
[1727098205964,0.3779,2649.2,2648.8,0.3881]
[1727098206365,0.3779,2649.2,2648.9,0.37756]
[1727098206671,0.3779,2649.2,2648.8,0.3881]
[1727098206863,0.3779,2649.2,2648.9,0.37757]
[1727098207066,0.75543,2649.2,2648.9,0.37757]
[1727098207262,0.3779,2649.2,2648.8,0.3881]
[1727098207461,2.06,2649.4,2649.0,0.37754]
[1727098207462,0.3775,2649.4,2649.0,0.37754]
[1727098207670,3.966,2649.5,2649.0,0.37755]
[1727098207876,0.37751,2649.3,2649.0,0.37755]
[1727098208075,0.3775,2649.4,2649.1,0.37753]
[1727098208371,0.37751,2649.3,2649.0,0.37755]
[1727098208575,2.06,2649.4,2648.9,0.3617]
[1727098208771,0.37749,2649.5,2649.2,0.37751]
[1727098208966,2.06,2649.6,2649.3,0.3797]
[1727098209166,0.37749,2649.5,2649.3,0.3797]
[1727098209367,2.43748,2649.6,2649.3,0.75721]
[1727098209676,2.06,2649.6,2649.3,0.3797]
[1727098209863,0.3779,2649.7,2649.3,0.3797]
[1727098209864,0.37749,2649.5,2649.3,0.3797]
[1727098210065,0.3779,2649.7,2649.5,0.37748]
[1727098210276,0.3779,2649.7,2649.4,0.37749]
[1727098210470,2.06,2649.6,2649.1,0.37753]
[1727098210670,3.9544,2649.5,2649.2,0.37752]
[1727098210877,3.94579,2649.5,2649.2,0.37752]
[1727098211174,3.94579,2649.5,2649.0,0.3797]
[1727098211175,0.3775,2649.4,2649.0,0.3797]
[1727098211374,3.2078,2649.5,2649.3,0.3775]
[1727098211571,3.2078,2649.5,2649.0,0.3797]
[1727098211572,3.2078,2649.5,2649.4,0.3775]
[1727098211973,3.2078,2649.5,2649.3,0.3775]
[1727098212167,3.2078,2649.5,2649.4,0.3775]
[1727098213969,3.2078,2649.5,2649.4,4.1519]
[1727098214277,3.2078,2649.5,2649.4,0.3775]
[1727098214473,0.74886,2649.7,2649.5,0.37747]
[1727098214885,0.3714,2649.7,2649.4,0.37749]
[1727098215070,2.06,2649.6,2649.1,3.2078]
[1727098215372,0.37751,2649.3,2649.0,0.7565]
[1727098215572,0.37751,2649.3,2649.1,0.37753]
[1727098215875,0.3775,2649.4,2649.2,0.37752]
[1727098216076,2.06,2649.3,2649.0,0.3797]
[1727098216378,2.06,2649.3,2648.8,3.6054]
[1727098216379,0.37753,2649.2,2648.8,3.6054]
[1727098216675,0.94375,2649.4,2648.9,0.3897]
[1727098216676,0.37751,2649.4,2648.9,0.3897]
[1727098216883,0.3709,2649.5,2649.0,0.37755]
[1727098216884,2.4309,2649.5,2649.0,0.37755]
[1727098217180,0.37755,2649.0,2648.9,0.3897]
[1727098217370,2.43755,2649.1,2648.9,0.76727]
[1727098217566,2.434,2649.1,2648.9,0.76727]
[1727098217883,2.434,2649.1,2648.8,3.2078]
[1727098218076,0.374,2649.1,2648.9,0.37757]
[1727098218378,2.06,2649.3,2649.1,0.37754]
[1727098218379,0.77241,2649.3,2649.1,0.37754]
[1727098218575,0.37753,2649.2,2649.0,0.37755]
[1727098219078,0.37753,2649.2,2648.9,0.37756]
[1727098219079,0.37755,2649.0,2648.9,0.37756]
[1727098219381,0.37756,2649.0,2648.8,3.58537]
[1727098220075,2.06,2649.0,2648.7,0.1]
[1727098220277,0.37758,2648.9,2648.7,0.1]
[1727098220472,0.37758,2648.8,2648.7,0.1]
[1727098220669,0.76168,2648.8,2648.7,0.1]
[1727098221080,6.02948,2648.8,2648.7,0.1]
[1727098221279,3.20358,2648.8,2648.7,0.1]
[1727098221473,0.766,2648.8,2648.7,0.1]
[1727098221669,1.14358,2648.8,2648.7,0.1]
[1727098222385,3.2078,2649.1,2649.0,0.37755]
[1727098222572,3.00371,2649.5,2648.7,0.4945]
[1727098222573,2.06,2649.3,2648.7,0.4945]
[1727098222773,0.37758,2648.8,2648.7,0.1]
[1727098222978,2.06,2648.9,2648.8,0.37758]
[1727098223175,2.43757,2648.9,2648.7,0.47759]
[1727098223377,0.37758,2648.8,2648.7,0.1]
[1727098223579,0.75948,2648.8,2648.7,0.1]
[1727098224779,1.70344,2648.8,2648.7,0.1]
[1727098224980,5.47864,2648.8,2648.7,0.1]
[1727098225980,11.47864,2648.8,2648.7,0.1]
[1727098226281,12.4226,2648.8,2648.7,0.1]
[1727098226581,12.4226,2648.8,2648.1,0.088]
[1727098226582,0.37767,2648.2,2648.1,0.088]
[1727098226779,0.37768,2648.1,2647.9,0.7755]
[1727098226977,0.3681,2648.1,2648.0,0.3777]
[1727098227192,0.37767,2648.2,2648.1,0.37768]
[1727098228192,0.37768,2648.1,2648.0,0.37769]
[1727098228381,0.37767,2648.2,2648.1,0.37768]
[1727098228686,3.36676,2648.3,2647.9,0.7755]
[1727098228885,0.37768,2648.1,2648.0,0.37769]
[1727098229087,0.37767,2648.2,2648.1,0.37768]
[1727098229282,5.6304,2648.3,2647.9,0.3978]
[1727098229283,0.3626,2648.3,2647.9,0.3978]
[1727098229483,0.74573,2648.5,2648.0,0.94425]
[1727098229684,0.37764,2648.4,2648.0,1.32045]
[1727098229891,0.74573,2648.5,2648.4,0.37764]
[1727098230289,0.74573,2648.5,2648.0,1.32045]
[1727098230290,0.3681,2648.5,2648.0,0.3762]
[1727098230490,2.436,2648.7,2648.0,1.32043]
[1727098230686,0.3811,2648.8,2648.7,0.3776]
[1727098230994,3.00387,2649.1,2648.7,0.37758]
[1727098231178,3.00387,2649.1,2648.4,0.94409]
[1727098231179,0.37757,2648.9,2648.8,0.7413]
[1727098231586,0.37762,2648.6,2648.1,0.94421]
[1727098231780,0.37762,2648.6,2648.5,0.37762]
[1727098231781,2.06,2648.6,2648.5,0.37762]
[1727098231985,0.7738,2648.8,2648.3,0.3726]
[1727098231986,2.06,2648.8,2648.7,0.3776]
[1727098232180,0.37754,2649.1,2649.0,0.37755]
[1727098232693,2.79913,2649.2,2649.1,0.37754]
[1727098232882,0.37756,2649.0,2648.9,0.37756]
[1727098233083,0.37756,2649.0,2648.6,0.3811]
[1727098233084,0.3776,2648.7,2648.6,0.3811]
[1727098233289,0.37762,2648.5,2648.4,0.3833]
[1727098233488,0.94407,2648.5,2648.2,0.75876]
[1727098233685,0.94407,2648.5,2648.1,0.76098]
[1727098233686,2.06,2648.4,2648.1,0.76098]
[1727098233881,2.06,2648.4,2648.1,0.3833]
[1727098233882,0.37767,2648.2,2648.1,0.3833]
[1727098234090,5.2678,2648.4,2648.1,0.37768]
[1727098234500,5.2678,2648.4,2647.9,0.3811]
[1727098234692,2.06,2648.4,2647.9,0.3811]
[1727098235289,2.4216,2648.6,2647.9,0.3811]
[1727098235491,2.43765,2648.3,2648.2,0.37766]
[1727098236394,2.43765,2648.3,2647.9,0.3811]
[1727098236395,0.37767,2648.2,2647.9,0.3811]
[1727098236586,0.3622,2648.2,2648.1,0.37768]
[1727098236786,1.11627,2648.2,2648.1,0.37768]
[1727098236985,0.7386,2648.2,2647.7,0.3833]
[1727098237189,0.7386,2648.2,2647.5,3.2078]
[1727098237190,0.37775,2647.6,2647.5,3.2078]
[1727098237402,2.06,2647.8,2647.5,0.37777]
[1727098237403,0.37774,2647.7,2647.5,0.37777]
[1727098237583,0.75414,2647.7,2647.4,0.73657]
[1727098237789,2.06,2647.5,2647.4,0.3588]
[1727098237984,2.06,2647.5,2647.4,0.73658]
[1727098238291,3.97829,2648.1,2647.8,0.37771]
[1727098238598,3.95579,2648.1,2647.9,0.3777]
[1727098238800,3.95579,2648.1,2648.0,0.3588]
[1727098240994,3.5781,2648.1,2648.0,0.7365]
[1727098241190,3.2078,2648.1,2648.0,0.7365]
[1727098242291,2.06,2648.2,2648.1,0.37768]
[1727098242490,0.3952,2648.5,2648.4,0.37764]
[1727098242888,2.06,2648.7,2648.6,0.37761]
[1727098243085,0.3776,2648.7,2648.6,0.37761]
[1727098243297,5.64537,2648.9,2648.8,0.37758]
[1727098243500,3.58537,2648.9,2648.8,0.37758]
[1727098243696,3.2078,2648.9,2648.8,0.37758]
[1727098243894,0.94365,2649.7,2648.8,3.7752]
[1727098243895,0.37751,2649.3,2648.8,3.7752]
[1727098244196,2.4375,2649.4,2649.2,0.37751]
[1727098244391,0.37752,2649.3,2649.1,0.37753]
[1727098244995,2.06,2649.4,2649.2,0.37752]
[1727098244996,2.4375,2649.4,2649.2,0.37752]
[1727098245185,2.4375,2649.4,2649.1,0.37753]
[1727098245186,0.37751,2649.3,2649.1,0.37753]
[1727098245691,2.06,2649.4,2649.0,0.3965]
[1727098245902,2.06,2649.4,2649.3,0.37751]
[1727098246087,0.3943,2649.7,2649.0,6.2309]
[1727098246396,0.3943,2649.7,2649.5,0.37747]
[1727098246589,0.3943,2649.7,2649.0,2.4565]
[1727098246590,2.06,2649.8,2649.6,0.37747]
[1727098246791,2.06,2649.8,2649.7,0.3965]
[1727098246792,2.43744,2649.8,2649.7,0.3965]
[1727098248398,2.06,2649.8,2649.7,0.3965]
[1727098248592,2.43744,2649.8,2649.7,0.3965]
[1727098249099,2.06,2649.8,2649.7,0.3965]
[1727098249400,3.2078,2649.9,2649.8,0.37744]
[1727098249596,0.387,2650.4,2650.2,0.37738]
[1727098249792,5.79935,2650.5,2650.2,0.37738]
[1727098249793,5.79934,2650.5,2650.2,0.37738]
[1727098250006,5.79934,2650.5,2649.7,0.3965]
[1727098250007,0.37736,2650.4,2650.1,0.37739]
[1727098250191,2.06,2650.5,2650.0,0.3774]
[1727098250397,3.5961,2650.6,2649.7,0.7639]
[1727098250398,2.06,2650.1,2649.7,0.7639]
[1727098250793,5.64517,2650.3,2650.1,0.37739]
[1727098251000,0.37739,2650.2,2649.7,0.7639]
[1727098251195,0.37739,2650.2,2649.9,0.37742]
[1727098251691,2.06,2650.0,2649.9,0.37742]
[1727098251907,2.06,2650.0,2649.7,0.7639]
[1727098251908,2.06,2650.0,2649.7,0.77395]
[1727098252091,2.43744,2649.8,2649.4,3.2078]
[1727098252292,2.43745,2649.8,2649.5,0.37747]
[1727098252798,2.43742,2650.0,2649.8,0.37743]
[1727098253002,0.37743,2649.9,2649.6,0.37747]
[1727098253305,2.06,2649.7,2649.5,3.58527]
[1727098253494,2.43746,2649.7,2649.5,0.37747]
[1727098253690,0.3775,2649.4,2649.3,0.369]
[1727098253891,0.37751,2649.3,2649.1,0.37753]
[1727098254096,0.37753,2649.2,2649.0,3.58534]
[1727098254293,3.2078,2649.4,2649.0,3.2078]
[1727098254493,0.756,2649.6,2649.0,3.2078]
[1727098254692,2.06,2649.7,2649.0,4.15167]
[1727098254901,2.06,2649.7,2649.3,0.3775]
[1727098255114,2.43749,2649.5,2649.3,0.3775]
[1727098255297,5.2678,2649.5,2649.0,3.2078]
[1727098255602,0.37756,2649.0,2648.8,0.3769]
[1727098255799,2.06,2649.2,2648.8,0.3769]
[1727098256005,2.06,2649.2,2648.8,0.75447]
[1727098256006,0.37756,2649.0,2648.8,0.75447]
[1727098256301,0.37756,2649.0,2648.8,0.75448]
[1727098256600,0.37761,2648.6,2648.4,0.37763]
[1727098257006,0.37762,2648.6,2648.4,0.37763]
[1727098257199,0.37762,2648.5,2648.3,3.58545]
[1727098257506,0.37762,2648.6,2648.4,0.37764]
[1727098257701,2.06,2648.7,2648.3,0.37765]
[1727098257702,0.37762,2648.5,2648.3,0.37765]
[1727098258094,2.06,2648.7,2648.4,0.37764]
[1727098258298,0.76459,2648.8,2648.6,0.37761]
[1727098258496,0.387,2648.8,2648.2,1.32597]
[1727098258700,0.76459,2648.8,2648.6,0.3776]
[1727098259401,0.387,2648.8,2648.7,0.3776]
[1727098259605,0.37757,2648.9,2648.7,0.37759]
[1727098260006,3.2078,2649.2,2648.3,3.00411]
[1727098260007,0.37755,2649.1,2648.4,4.1519]
[1727098260197,3.2078,2649.2,2648.7,0.37758]
[1727098260198,0.37756,2649.0,2648.7,0.37758]
[1727098260398,3.2078,2649.2,2648.5,2.06]
[1727098260604,0.37756,2649.0,2648.8,0.37758]
[1727098260908,2.06,2649.1,2648.6,0.3865]
[1727098261103,0.37755,2649.1,2648.9,0.37756]
[1727098261411,0.37755,2649.0,2648.9,0.37756]
[1727098261713,0.37758,2648.8,2648.6,0.7641]
[1727098261901,2.06,2649.1,2648.6,0.7641]
[1727098261902,2.06,2649.1,2648.7,0.3776]
[1727098262097,3.2078,2648.8,2648.2,0.3818]
[1727098262303,2.06,2648.3,2647.9,0.47212979]
[1727098262813,0.37767,2648.2,2648.0,0.3777]
[1727098262999,0.37767,2648.2,2648.0,0.37768]
[1727098263306,0.37767,2648.2,2647.9,0.47212979]
[1727098263307,0.37766,2648.3,2647.9,0.47212979]
[1727098263515,0.3777,2648.0,2647.9,0.47212979]
[1727098263700,2.06,2648.1,2647.9,0.84983979]
[1727098263701,0.37769,2648.1,2647.9,0.84983979]
[1727098264006,0.37767,2648.2,2648.0,0.37769]
[1727098264209,2.06,2648.3,2647.9,0.47212979]
[1727098264609,3.2078,2648.2,2647.9,0.47212979]
[1727098264912,3.2078,2648.2,2647.2,3.2078]
[1727098264913,0.37775,2647.7,2647.2,3.2078]
[1727098265302,0.37775,2647.7,2647.1,0.7764]
[1727098265700,5.2678,2647.8,2647.1,0.7764]
[1727098265903,1.70621,2647.9,2646.7,0.088]
[1727098265904,2.06,2647.3,2646.7,0.088]
[1727098266212,3.2078,2647.5,2647.1,0.37781]
[1727098266409,3.2078,2647.5,2647.2,0.3778]
[1727098266601,3.2078,2647.5,2647.1,0.37782]
[1727098266602,3.58557,2647.5,2647.1,0.37782]
[1727098267603,3.58557,2647.5,2647.2,0.37781]
[1727098267910,3.2078,2647.5,2647.2,0.3778]
[1727098268210,3.2078,2647.5,2647.0,2.06]
[1727098268409,3.2078,2647.5,2646.7,4.15251]
[1727098268608,3.2078,2647.5,2647.4,0.37778]
[1727098269114,0.37769,2648.1,2647.8,0.37772]
[1727098269502,3.58548,2648.2,2647.8,0.37772]
[1727098269704,0.37769,2648.1,2647.8,0.37772]
[1727098270601,3.58547,2648.2,2647.9,0.3777]
[1727098270808,0.37768,2648.1,2647.9,0.3777]
[1727098271012,3.2078,2648.2,2647.6,3.2078]
[1727098271202,3.58547,2648.2,2647.6,3.2078]
[1727098271514,3.2078,2648.2,2648.0,0.37769]
[1727098271908,3.2078,2648.2,2647.5,0.392]
[1727098272213,0.37769,2648.1,2647.8,0.37772]
[1727098272410,0.3777,2648.0,2647.7,0.37773]
[1727098272612,0.37772,2647.9,2647.6,0.37775]
[1727098272809,3.2078,2648.2,2647.5,0.392]
[1727098273017,2.54,2648.0,2647.6,0.37774]
[1727098273208,0.37773,2647.8,2647.5,0.76976]
[1727098273402,2.54,2648.0,2647.5,0.392]
[1727098273403,0.37772,2647.9,2647.5,0.392]
[1727098273607,2.54,2648.0,2647.5,0.392]
[1727098273915,3.2078,2647.9,2647.3,3.2078]
[1727098274114,0.37777,2647.6,2647.3,3.2078]
[1727098274314,0.37777,2647.6,2647.4,0.37778]
[1727098274509,0.37774,2647.7,2647.4,0.37777]
[1727098274929,0.37775,2647.6,2647.4,0.37777]